Workbook

Sheet Start
B2: Preisdifferenzierung
B4: Welche Marktform liegt vor?
B9: Hinweise:
B10: Mit der voliegenden Anwendungen können die Auswirkungen von Preisdifferenzierungen
B11: im einem unvollkommenen Markt und bei einer monopolistischen Markform
B12: simuliert werden.
B14: Bei vorliegenden Preis-Absatz- und Kostenfunktionen wird in jeder Marktform zunächst
B15: das Gewinnmaximum (Cournotscher Punkt) für eine Preis-Mengen-Kombination
B16: ermittelt.
B17: Von dem Cournotschen Preis können in jeder Marktform zwei abweichende Preise
B18: angegeben und die Auswirkungen auf den Gesamtgewinn simuliert werden.
B20: Preis-Absatz- und Kostenfunktionen können in die entsprechenden Zellen eingegeben
B21: werden.
B22: Musterfunktionen können jeweils von der Seite "Funktionen" kopiert und in die
B23: entsprechenden Zellen bei den beiden Marktformen eingefügt werden.

Sheet unvollkommenerMarkt
B2: Preisdifferenzierung im unvollkommen Markt und Oligopol
Y3: Tabellen für die graphische Darstellung der Preis-Absatz-Funktion
I4: Gewinnmaximum ohne Preisdifferenzierung | P4: Notwendige Berechnungen zur Zuweisung der Preise p2 und p3 zu den definierten Abschnitten der Preis-Absatz-Funktion und Berechnung der zugehörigen Absatzmengen. | U4: Erlöse in Abhängikeit von der Preisstruktur | Y4: X | Z4: PAF1 | AA4: PAF2 | AB4: PAF3 | AC4: PAF | AD4: X | AE4: Zeilen | AF4: Definitionsbereiche
B5: Funktionen | D5: bX2 | E5: cX | F5: d | G5: d/X | K5: Gewinn | L5: Preis | M5: Menge | U5: pch-p2m-p3n | V5: p2h-pcm-p3n | W5: p3h-pcm-p2n | Y5: 0 | Z5: =$F$7+$E$7*Y5 -> 15 | AA5: =$F$8+$E$8*Y5 -> 22 | AB5: =$F$9+$E$9*Y5 -> 12 | AC5: =IF(AND($Z5<$AA5,$AA5>$AB5),Z5,IF(AND($AA5>$AB5,$Z5>$AB5),AA5,AB5)) -> 15 | AD5: =Y5 -> 0 | AE5: 0 | AF5: =IF(AC5=Z5,"PAF1",IF(AC5=AA5,"PAF2","PAF3")) -> PAF1 | AG5: =IF(AF5="PAF1",AD5,"") -> 0
B6: Gesamtkosten | C6: K= | E6: 4 | F6: 5100 | I6: PAF1 | J6: =IF(AND(M6<K11,M6>J11),"definiert","nicht definiert") -> nicht definiert | K6: =IF(J6="definiert",(M6*L6)-(F6+(E6*M6)),"") ->  | L6: =IF(J6="definiert",F7+(E7*M6),"") ->  | M6: =ROUND((F17-F13)/(E17*-1),0) -> 4400 | U6: =(J18*N18)+((J16*N16)-(J16*N18))+((J17*N17)-(J17*N16)) -> 15925 | V6: =(J16*N16)+((J18*N18)-(J18*N16))+((J17*N17)-(J17*N18)) -> 19525 | W6: =(J17*N17)+((J18*N18)-(J18*N17))+((J16*N16)-(J16*N18)) -> -3425 | Y6: =F22/100 -> 60 | Z6: =$F$7+$E$7*Y6 -> 14.925 | AA6: =$F$8+$E$8*Y6 -> 21.4 | AB6: =$F$9+$E$9*Y6 -> 11.88 | AC6: =IF(AND($Z6<$AA6,$AA6>$AB6),Z6,IF(AND($AA6>$AB6,$Z6>$AB6),AA6,AB6)) -> 14.925 | AD6: =Y6 -> 60 | AE6: 1 | AF6: PAF1 | AG6: =IF(AF6="PAF1",AD6,"") -> 60 | AH6: =IF(AF6="PAF2",AD6,"") ->  | AI6: =IF(AF6="PAF3",AD6,"") -> 
B7: Preis-Absatz-Funktion 1 | C7: p1= | E7: -0.00125 | F7: 15 | I7: PAF2 | J7: =IF(AND(M7<K12,M7>J12),"definiert","nicht definiert") -> definiert | K7: =IF(J7="definiert",(M7*L7)-(F6+(E6*M7)),"") -> 3000 | L7: =IF(J7="definiert",F8+(E8*M7),"") -> 13 | M7: =ROUND((F19-F13)/(E19*-1),0) -> 900 | U7: pch-p3m-p2n | V7: p2h-p3m-pcn | W7: p3h-p2m-pcn | Y7: =Y6+$Y$6 -> 120 | Z7: 14.85 | AA7: 20.8 | AB7: 11.76 | AC7: =IF(AND($Z7<$AA7,$AA7>$AB7),Z7,IF(AND($AA7>$AB7,$Z7>$AB7),AA7,AB7)) -> 14.85 | AD7: 120 | AE7: 2 | AF7: PAF1 | AG7: =IF(AF7="PAF1",AD7,"") -> 120 | AH7: =IF(AF7="PAF2",AD7,"") ->  | AI7: =IF(AF7="PAF3",AD7,"") -> 
B8: Preis-Absatz-Funktion 2 | C8: p2= | E8: -0.01 | F8: 22 | I8: PAF3 | J8: =IF(AND(M8<K13,M8>J13),"definiert","nicht definiert") -> definiert | K8: =IF(J8="definiert",(M8*L8)-(F6+(E6*M8)),"") -> 2900 | L8: =IF(J8="definiert",F9+(E9*M8),"") -> 8 | M8: =ROUND((F21-F13)/(E21*-1),0) -> 2000 | U8: =(J18*N18)+((J17*N17)-(J17*N18))+((J16*N16)-(J16*N17)) -> -650 | V8: =(J16*N16)+((J17*N17)-(J17*N16))+((J18*N18)-(J18*N17)) -> 6225 | W8: =(J17*N17)+((J16*N16)-(J16*N17))+((J18*N18)-(J18*N16)) -> 1800 | Y8: =Y7+$Y$6 -> 180 | Z8: 14.775 | AA8: 20.2 | AB8: 11.64 | AC8: 14.775 | AD8: 180 | AE8: 3 | AF8: PAF1 | AG8: 180
B9: Preis-Absatz-Funktion 3 | C9: p3= | E9: -0.002 | F9: 12 | I9: Definitionsbereiche | L9: Cournotscher Punkt | P9: Preise an den Knickpunkte der Preis-Absatz-Funktionen | Y9: 240 | Z9: 14.7 | AA9: 19.6 | AB9: 11.52 | AC9: 14.7 | AD9: 240 | AE9: 4 | AF9: PAF1 | AG9: 240
B10: variable Gesamtkosten | C10: Kv= | E10: =E6 -> 4 | J10: xmin | K10: xmax | U10: Kosten in Abhängigkeit von der Preisstruktur | Y10: 300 | Z10: 14.625 | AA10: 19 | AB10: 11.4 | AC10: 14.625 | AD10: 300 | AE10: 5 | AF10: PAF1 | AG10: 300
B11: Stückkosten | C11: k= | F11: =E6 -> 4 | G11: =F6 -> 5100 | I11: PAF1 | J11: 0 | K11: =ROUND((F8-F7)/(E7+E8*-1),0) -> 800 | L11: Gmax | M11: =MAX(K6:K8) -> 3000 | P11: =F7 -> 15 | Q11: =F7+(E7*K11) -> 14 | U11: pch-p2m-p3n | V11: p2h-pcm-p3n | W11: p3h-pcm-p2n | Y11: 360 | Z11: 14.55 | AA11: 18.4 | AB11: 11.28 | AC11: 14.55 | AD11: 360 | AE11: 6 | AF11: PAF1 | AG11: 360
B12: variable Stückkosten | C12: kv= | F12: =E6 -> 4 | I12: PAF2 | J12: =ROUND(K11,0) -> 800 | K12: =ROUND((F9-F8)/(E8+E9*-1),0) -> 1250 | L12: XGmax | M12: =ROUND(VLOOKUP(M11,K6:M8,3),0) -> 900 | P12: =F8+(E8*J12) -> 14 | Q12: =F8+(E8*K12) -> 9.5 | U12: =F6+(E6*N17) -> 12100 | V12: =F6+(E6*N17) -> 12100 | W12: =F6+(E6*N16) -> 6700 | Y12: 420 | Z12: 14.475 | AA12: 17.8 | AB12: 11.16 | AC12: 14.475 | AD12: 420 | AE12: 7 | AF12: PAF1 | AG12: 420
B13: Grenzkosten | C13: K'= | F13: =E6 -> 4 | I13: PAF3 | J13: =K12 -> 1250 | K13: =F22 -> 6000 | L13: PGmax | M13: =VLOOKUP(M11,K6:M8,2) -> 13 | P13: =F9+(E9*J13) -> 9.5 | Q13: =F9+(E9*F22) -> 0 | U13: pch-p3m-p2n | V13: p2h-p3m-pcn | W13: p3h-p2m-pcn | Y13: 480 | Z13: 14.4 | AA13: 17.2 | AB13: 11.04 | AC13: 14.4 | AD13: 480 | AE13: 8 | AF13: PAF1 | AG13: 480
B14: fixe Gesamtkosten | C14: Kf= | F14: =F6 -> 5100 | P14: Mengen in Abhängigkeit von der Preisstruktur | U14: =F6+(E6*N16) -> 6700 | V14: =F6+(E6*N18) -> 8700 | W14: =F6+(E6*N18) -> 8700 | Y14: 540 | Z14: 14.325 | AA14: 16.6 | AB14: 10.92 | AC14: 14.325 | AD14: 540 | AE14: 9 | AF14: PAF1 | AG14: 540
B15: fixe Stückkosten | C15: kf= | G15: =F6 -> 5100 | I15: Preisdifferenzierung | L15: Preisstruktur | N15: Menge | Y15: 600 | Z15: 14.25 | AA15: 16 | AB15: 10.8 | AC15: 14.25 | AD15: 600 | AE15: 10 | AF15: PAF1 | AG15: 600
B16: Erlös 1 | C16: E1= | D16: =E7 -> -0.00125 | E16: =F7 -> 15 | I16: p2 | J16: 14.5 | K16: =IF(OR(J16>P11,N16<0),"nicht definiert","definiert") -> definiert | L16: =IF(AND(J16>J18,J16>J17),"Hochpreis",IF(AND(J16<J18,J16<J17),"Niedrigpreis","Mittelpreis")) -> Hochpreis | M16: =IF(L16="Hochpreis",1,IF(L16="Mittelpreis",2,3)) -> 1 | N16: =INT(ROUND(IF(AND(P17>=0,P17<=K11),P17,IF(AND(Q17>J12,Q17<=K12),Q17,R17)),0)) -> 400 | P16: x(p1) | Q16: x(p2) | R16: x(p3) | U16: Gewinn in Abhängigkeit von der Preisstruktur | Y16: 660 | Z16: 14.175 | AA16: 15.4 | AB16: 10.68 | AC16: 14.175 | AD16: 660 | AE16: 11 | AF16: PAF1 | AG16: 660
B17: Grenzerlös 1 | C17: E1'= | E17: =2*D16 -> -0.0025 | F17: =E16 -> 15 | I17: p3 | J17: 8.5 | K17: =IF(OR(J17>P11,N17<0),"nicht definiert","definiert") -> definiert | L17: =IF(AND(J17>J18,J17>J16),"Hochpreis",IF(AND(J17<J18,J17<J16),"Niedrigpreis","Mittelpreis")) -> Niedrigpreis | M17: =IF(L17="Hochpreis",1,IF(L17="Mittelpreis",2,3)) -> 3 | N17: =INT(ROUND(IF(AND(P18>=0,P18<=K11),P18,IF(AND(Q18>J12,Q18<=K12),Q18,R18)),0)) -> 1750 | P17: =(F7-J16)/(E7*-1) -> 400 | Q17: =(F8-J16)/(E8*-1) -> 750 | R17: =(F9-J16)/(E9*-1) -> -1250 | U17: pch-p2m-p3n | V17: p2h-pcm-p3n | W17: p3h-pcm-p2n | Y17: 720 | Z17: 14.1 | AA17: 14.8 | AB17: 10.56 | AC17: 14.1 | AD17: 720 | AE17: 12 | AF17: PAF1 | AG17: 720
B18: Erlös 2 | C18: E2= | D18: =E8 -> -0.01 | E18: =F8 -> 22 | I18: pc | J18: =M13 -> 13 | K18: definiert | L18: =IF(AND(J18>J16,J18>J17),"Hochpreis",IF(AND(J18<J16,J18<J17),"Niedrigpreis","Mittelpreis")) -> Mittelpreis | M18: =IF(L18="Hochpreis",1,IF(L18="Mittelpreis",2,3)) -> 2 | N18: =ROUND(M12,0) -> 900 | P18: =(F7-J17)/(E7*-1) -> 5200 | Q18: =(F8-J17)/(E8*-1) -> 1350 | R18: =(F9-J17)/(E9*-1) -> 1750 | U18: =U6-U12 -> 3825 | V18: =V6-V12 -> 7425 | W18: =W6-W12 -> -10125 | Y18: 780 | Z18: 14.025 | AA18: 14.2 | AB18: 10.44 | AC18: 14.025 | AD18: 780 | AE18: 13 | AF18: PAF1 | AG18: 780
B19: Grenzerlös 2 | C19: E2'= | E19: =2*D18 -> -0.02 | F19: =E18 -> 22 | U19: pch-p3m-p2n | V19: p2h-p3m-pcn | W19: p3h-p2m-pcn | Y19: 840 | Z19: 13.95 | AA19: 13.6 | AB19: 10.32 | AC19: 13.6 | AD19: 840 | AE19: 14 | AF19: PAF2 | AH19: 840
B20: Erlös 3 | C20: E3= | D20: =E9 -> -0.002 | E20: =F9 -> 12 | I20: Umsatz | J20: =IF(AND($M$18=1,$M$16=2),U6,IF(AND($M$18=1,$M$17=2),U8,IF(AND($M$16=1,$M$18=2),V6,IF(AND($M$16=1,$M$17=2),V8,IF(AND($M$17=1,$M$18=2),W6,W8))))) -> 19525 | K20: Gewinn mit Preisdifferenzierung | N20: =J22 -> 7425 | U20: =U8-U14 -> -7350 | V20: =V8-V14 -> -2475 | W20: =W8-W14 -> -6900 | Y20: 900 | Z20: 13.875 | AA20: 13 | AB20: 10.2 | AC20: 13 | AD20: 900 | AE20: 15 | AF20: PAF2 | AH20: 900
B21: Grenzerlös 3 | C21: E3'= | E21: =2*D20 -> -0.004 | F21: =E20 -> 12 | I21: Kosten | J21: =IF(AND($M$18=1,$M$16=2),U12,IF(AND($M$18=1,$M$17=2),U14,IF(AND($M$16=1,$M$18=2),V12,IF(AND($M$16=1,$M$17=2),V14,IF(AND($M$17=1,$M$18=2),W12,W14))))) -> 12100 | K21: Gewinn ohne Preisdifferenzierung | N21: =M11 -> 3000 | P21: Matrix der Preis-Absatz-Funktion (Datenreihen für dasPunktdiagramm) | Y21: 960 | Z21: 13.8 | AA21: 12.4 | AB21: 10.08 | AC21: 12.4 | AD21: 960 | AE21: 16 | AF21: PAF2 | AH21: 960
B22: Sättigungsmenge | C22: xmax= | F22: =ROUND((F9/E9)*-1,0) -> 6000 | I22: Gewinn | J22: =IF(AND($M$18=1,$M$16=2),U18,IF(AND($M$18=1,$M$17=2),U20,IF(AND($M$16=1,$M$18=2),V18,IF(AND($M$16=1,$M$17=2),V20,IF(AND($M$17=1,$M$18=2),W18,W20))))) -> 7425 | K22: Differenz | N22: =N20-N21 -> 4425 | Y22: 1020 | Z22: 13.725 | AA22: 11.8 | AB22: 9.96 | AC22: 11.8 | AD22: 1020 | AE22: 17 | AF22: PAF2 | AH22: 1020
I23: UP2 | J23: UP2 | K23: UP3 | L23: Kv | M23: Kf | P23: PAF1 | Q23: 0 | R23: =P11 -> 15 | Y23: 1080 | Z23: 13.65 | AA23: 11.2 | AB23: 9.84 | AC23: 11.2 | AD23: 1080 | AE23: 18 | AF23: PAF2 | AH23: 1080
I24: =J16*N16 -> 5800 | J24: =J18*(N18-N16) -> 6500 | K24: =J17*(N17-N18) -> 7225 | L24: =E6*N17 -> 7000 | M24: =F6 -> 5100 | Q24: =K11 -> 800 | R24: =Q11 -> 14 | Y24: 1140 | Z24: 13.575 | AA24: 10.6 | AB24: 9.72 | AC24: 10.6 | AD24: 1140 | AE24: 19 | AF24: PAF2 | AH24: 1140
B25: Hinweise: Die Kostenfunktion wird in die Zellen E6 - F6 eingetragen. (E6: mengenabhängiger Teil, variable Stückkosten; F6: konstanter Teil, fixe Kosten) | P25: PAF2 | Q25: =J12 -> 800 | R25: =P12 -> 14 | V25: =16-(-E7*K11) -> 15 | Y25: 1200 | Z25: 13.5 | AA25: 10 | AB25: 9.6 | AC25: 10 | AD25: 1200 | AE25: 20 | AF25: PAF2 | AH25: 1200
B26: Die Preis-Absatz-Funktionen (p1, p2, p3) werden in die Zellen E7 - F9 eingetragen. (mengenabhängiger Teil in Spalte E, konstanter Teil in Spalte F) | Q26: =K12 -> 1250 | R26: =Q12 -> 9.5 | V26: =F8-(-E8*K12) -> 9.5 | Y26: 1260 | Z26: 13.425 | AA26: 9.4 | AB26: 9.48 | AC26: 9.48 | AD26: 1260 | AE26: 21 | AF26: PAF3 | AI26: 1260
B27: Gewinnänderungen aufgrund der Preisdifferenzierung werden in Zelle N22 angezeigt. | P27: PAF§ | Q27: =K12 -> 1250 | R27: =P13 -> 9.5 | Y27: 1320 | Z27: 13.35 | AA27: 8.8 | AB27: 9.36 | AC27: 9.36 | AD27: 1320 | AE27: 22 | AF27: PAF3 | AI27: 1320
B28: Musterfunktionen können von der Seite "Funktionen" kopiert und in die Zellen E6 - F9 eingefügt werden. | Q28: =K13 -> 6000 | R28: 0 | Y28: 1380 | Z28: 13.275 | AA28: 8.2 | AB28: 9.24 | AC28: 9.24 | AD28: 1380 | AE28: 23 | AF28: PAF3 | AI28: 1380
Y29: 1440 | Z29: 13.2 | AA29: 7.6 | AB29: 9.12 | AC29: 9.12 | AD29: 1440 | AE29: 24 | AF29: PAF3 | AI29: 1440
P30: Matrix der Preis-Mengen-Kombinationen (Datenreihen für das Punktdiagramm) | Y30: 1500 | Z30: 13.125 | AA30: 7 | AB30: 9 | AC30: 9 | AD30: 1500 | AE30: 25 | AF30: PAF3 | AI30: 1500
Y31: 1560 | Z31: 13.05 | AA31: 6.4 | AB31: 8.88 | AC31: 8.88 | AD31: 1560 | AE31: 26 | AF31: PAF3 | AI31: 1560
P32: Cournotscher Punkt | Y32: 1620 | Z32: 12.975 | AA32: 5.8 | AB32: 8.76 | AC32: 8.76 | AD32: 1620 | AE32: 27 | AF32: PAF3 | AI32: 1620
P33: =M12 -> 900 | Q33: 0 | R33: 0 | S33: =M13 -> 13 | Y33: 1680 | Z33: 12.9 | AA33: 5.2 | AB33: 8.64 | AC33: 8.64 | AD33: 1680 | AE33: 28 | AF33: PAF3 | AI33: 1680
P34: =M12 -> 900 | Q34: =M13 -> 13 | R34: =M12 -> 900 | S34: =M13 -> 13 | Y34: 1740 | Z34: 12.825 | AA34: 4.6 | AB34: 8.52 | AC34: 8.52 | AD34: 1740 | AE34: 29 | AF34: PAF3 | AI34: 1740
P35: Preis 2, Menge 2 | Y35: 1800 | Z35: 12.75 | AA35: 4 | AB35: 8.4 | AC35: 8.4 | AD35: 1800 | AE35: 30 | AF35: PAF3 | AI35: 1800
P36: =N16 -> 400 | Q36: 0 | R36: 0 | S36: =J16 -> 14.5 | Y36: 1860 | Z36: 12.675 | AA36: 3.4 | AB36: 8.28 | AC36: 8.28 | AD36: 1860 | AE36: 31 | AF36: PAF3 | AI36: 1860
P37: =N16 -> 400 | Q37: =J16 -> 14.5 | R37: =N16 -> 400 | S37: =J16 -> 14.5 | Y37: 1920 | Z37: 12.6 | AA37: 2.8 | AB37: 8.16 | AC37: 8.16 | AD37: 1920 | AE37: 32 | AF37: PAF3 | AI37: 1920
P38: Preis 3, Menge 3 | Y38: 1980 | Z38: 12.525 | AA38: 2.2 | AB38: 8.04 | AC38: 8.04 | AD38: 1980 | AE38: 33 | AF38: PAF3 | AI38: 1980
P39: =N17 -> 1750 | Q39: 0 | R39: 0 | S39: =J17 -> 8.5 | Y39: 2040 | Z39: 12.45 | AA39: 1.6 | AB39: 7.92 | AC39: 7.92 | AD39: 2040 | AE39: 34 | AF39: PAF3 | AI39: 2040
P40: =N17 -> 1750 | Q40: =J17 -> 8.5 | R40: =N17 -> 1750 | S40: =J17 -> 8.5 | Y40: 2100 | Z40: 12.375 | AA40: 1 | AB40: 7.8 | AC40: 7.8 | AD40: 2100 | AE40: 35 | AF40: PAF3 | AI40: 2100
Y41: 2160 | Z41: 12.3 | AA41: 0.4 | AB41: 7.68 | AC41: 7.68 | AD41: 2160 | AE41: 36 | AF41: PAF3 | AI41: 2160
Y42: 2220 | Z42: 12.225 | AA42: -0.2 | AB42: 7.56 | AC42: 7.56 | AD42: 2220 | AE42: 37 | AF42: PAF3 | AI42: 2220
Y43: 2280 | Z43: 12.15 | AA43: -0.8 | AB43: 7.44 | AC43: 7.44 | AD43: 2280 | AE43: 38 | AF43: PAF3 | AI43: 2280
Y44: 2340 | Z44: 12.075 | AA44: -1.4 | AB44: 7.32 | AC44: 7.32 | AD44: 2340 | AE44: 39 | AF44: PAF3 | AI44: 2340
Y45: 2400 | Z45: 12 | AA45: -2 | AB45: 7.2 | AC45: 7.2 | AD45: 2400 | AE45: 40 | AF45: PAF3 | AI45: 2400
Y46: 2460 | Z46: 11.925 | AA46: -2.6 | AB46: 7.08 | AC46: 7.08 | AD46: 2460 | AE46: 41 | AF46: PAF3 | AI46: 2460
Y47: 2520 | Z47: 11.85 | AA47: -3.2 | AB47: 6.96 | AC47: 6.96 | AD47: 2520 | AE47: 42 | AF47: PAF3 | AI47: 2520
Y48: 2580 | Z48: 11.775 | AA48: -3.8 | AB48: 6.84 | AC48: 6.84 | AD48: 2580 | AE48: 43 | AF48: PAF3 | AI48: 2580
Y49: 2640 | Z49: 11.7 | AA49: -4.4 | AB49: 6.72 | AC49: 6.72 | AD49: 2640 | AE49: 44 | AF49: PAF3 | AI49: 2640
Y50: 2700 | Z50: 11.625 | AA50: -5 | AB50: 6.6 | AC50: 6.6 | AD50: 2700 | AE50: 45 | AF50: PAF3 | AI50: 2700
Y51: 2760 | Z51: 11.55 | AA51: -5.6 | AB51: 6.48 | AC51: 6.48 | AD51: 2760 | AE51: 46 | AF51: PAF3 | AI51: 2760
Y52: 2820 | Z52: 11.475 | AA52: -6.2 | AB52: 6.36 | AC52: 6.36 | AD52: 2820 | AE52: 47 | AF52: PAF3 | AI52: 2820
Y53: 2880 | Z53: 11.4 | AA53: -6.8 | AB53: 6.24 | AC53: 6.24 | AD53: 2880 | AE53: 48 | AF53: PAF3 | AI53: 2880
Y54: 2940 | Z54: 11.325 | AA54: -7.4 | AB54: 6.12 | AC54: 6.12 | AD54: 2940 | AE54: 49 | AF54: PAF3 | AI54: 2940
Y55: 3000 | Z55: 11.25 | AA55: -8 | AB55: 6 | AC55: 6 | AD55: 3000 | AE55: 50 | AF55: PAF3 | AI55: 3000
Y56: 3060 | Z56: 11.175 | AA56: -8.6 | AB56: 5.88 | AC56: 5.88 | AD56: 3060 | AE56: 51 | AF56: PAF3 | AI56: 3060
B57: Berechnungen: Spalte P - AI; Schriftfarbe: weiß | Y57: 3120 | Z57: 11.1 | AA57: -9.2 | AB57: 5.76 | AC57: 5.76 | AD57: 3120 | AE57: 52 | AF57: PAF3 | AI57: 3120
Y58: 3180 | Z58: 11.025 | AA58: -9.8 | AB58: 5.64 | AC58: 5.64 | AD58: 3180 | AE58: 53 | AF58: PAF3 | AI58: 3180
Y59: 3240 | Z59: 10.95 | AA59: -10.4 | AB59: 5.52 | AC59: 5.52 | AD59: 3240 | AE59: 54 | AF59: PAF3 | AI59: 3240
Y60: 3300 | Z60: 10.875 | AA60: -11 | AB60: 5.4 | AC60: 5.4 | AD60: 3300 | AE60: 55 | AF60: PAF3 | AI60: 3300
Y61: 3360 | Z61: 10.8 | AA61: -11.6 | AB61: 5.28 | AC61: 5.28 | AD61: 3360 | AE61: 56 | AF61: PAF3 | AI61: 3360
Y62: 3420 | Z62: 10.725 | AA62: -12.2 | AB62: 5.16 | AC62: 5.16 | AD62: 3420 | AE62: 57 | AF62: PAF3 | AI62: 3420
Y63: 3480 | Z63: 10.65 | AA63: -12.8 | AB63: 5.04 | AC63: 5.04 | AD63: 3480 | AE63: 58 | AF63: PAF3 | AI63: 3480
Y64: 3540 | Z64: 10.575 | AA64: -13.4 | AB64: 4.92 | AC64: 4.92 | AD64: 3540 | AE64: 59 | AF64: PAF3 | AI64: 3540
Y65: 3600 | Z65: 10.5 | AA65: -14 | AB65: 4.8 | AC65: 4.8 | AD65: 3600 | AE65: 60 | AF65: PAF3 | AI65: 3600
Y66: 3660 | Z66: 10.425 | AA66: -14.6 | AB66: 4.68 | AC66: 4.68 | AD66: 3660 | AE66: 61 | AF66: PAF3 | AI66: 3660
Y67: 3720 | Z67: 10.35 | AA67: -15.2 | AB67: 4.56 | AC67: 4.56 | AD67: 3720 | AE67: 62 | AF67: PAF3 | AI67: 3720
Y68: 3780 | Z68: 10.275 | AA68: -15.8 | AB68: 4.44 | AC68: 4.44 | AD68: 3780 | AE68: 63 | AF68: PAF3 | AI68: 3780
Y69: 3840 | Z69: 10.2 | AA69: -16.4 | AB69: 4.32 | AC69: 4.32 | AD69: 3840 | AE69: 64 | AF69: =IF(AC69=Z69,"PAF1",IF(AC69=AA69,"PAF2","PAF3")) -> PAF3 | AI69: 3840
Y70: 3900 | Z70: =$F$7+$E$7*Y70 -> 10.125 | AA70: =$F$8+$E$8*Y70 -> -17 | AB70: =$F$9+$E$9*Y70 -> 4.2 | AC70: 4.2 | AD70: =Y70 -> 3900 | AE70: 65 | AF70: PAF3 | AI70: 3900
Y71: 3960 | Z71: 10.05 | AA71: -17.6 | AB71: 4.08 | AC71: =IF(AND($Z71<$AA71,$AA71>$AB71),Z71,IF(AND($AA71>$AB71,$Z71>$AB71),AA71,AB71)) -> 4.08 | AD71: 3960 | AE71: 66 | AF71: PAF3 | AG71: =IF(AF71="PAF1",AD71,"") ->  | AH71: =IF(AF71="PAF2",AD71,"") ->  | AI71: =IF(AF71="PAF3",AD71,"") -> 3960
Y72: =Y71+$Y$6 -> 4020 | Z72: 9.975 | AA72: -18.2 | AB72: 3.96 | AC72: 3.96 | AD72: 4020 | AE72: 67 | AF72: PAF3 | AI72: 4020
Y73: 4080 | Z73: 9.9 | AA73: -18.8 | AB73: 3.84 | AC73: 3.84 | AD73: 4080 | AE73: 68 | AF73: PAF3 | AI73: 4080
Y74: 4140 | Z74: 9.825 | AA74: -19.4 | AB74: 3.72 | AC74: 3.72 | AD74: 4140 | AE74: 69 | AF74: PAF3 | AI74: 4140
Y75: 4200 | Z75: 9.75 | AA75: -20 | AB75: 3.6 | AC75: 3.6 | AD75: 4200 | AE75: 70 | AF75: PAF3 | AI75: 4200
Y76: 4260 | Z76: 9.675 | AA76: -20.6 | AB76: 3.48 | AC76: 3.48 | AD76: 4260 | AE76: 71 | AF76: PAF3 | AI76: 4260
Y77: 4320 | Z77: 9.6 | AA77: -21.2 | AB77: 3.36 | AC77: 3.36 | AD77: 4320 | AE77: 72 | AF77: PAF3 | AI77: 4320
Y78: 4380 | Z78: 9.525 | AA78: -21.8 | AB78: 3.24 | AC78: 3.24 | AD78: 4380 | AE78: 73 | AF78: PAF3 | AI78: 4380
Y79: 4440 | Z79: 9.45 | AA79: -22.4 | AB79: 3.12 | AC79: 3.12 | AD79: 4440 | AE79: 74 | AF79: PAF3 | AI79: 4440
Y80: 4500 | Z80: 9.375 | AA80: -23 | AB80: 3 | AC80: 3 | AD80: 4500 | AE80: 75 | AF80: PAF3 | AI80: 4500
Y81: 4560 | Z81: 9.3 | AA81: -23.6 | AB81: 2.88 | AC81: 2.88 | AD81: 4560 | AE81: 76 | AF81: PAF3 | AI81: 4560
Y82: 4620 | Z82: 9.225 | AA82: -24.2 | AB82: 2.76 | AC82: 2.76 | AD82: 4620 | AE82: 77 | AF82: PAF3 | AI82: 4620
Y83: 4680 | Z83: 9.15 | AA83: -24.8 | AB83: 2.64 | AC83: 2.64 | AD83: 4680 | AE83: 78 | AF83: PAF3 | AI83: 4680
Y84: 4740 | Z84: 9.075 | AA84: -25.4 | AB84: 2.52 | AC84: 2.52 | AD84: 4740 | AE84: 79 | AF84: PAF3 | AI84: 4740
Y85: 4800 | Z85: 9 | AA85: -26 | AB85: 2.4 | AC85: 2.4 | AD85: 4800 | AE85: 80 | AF85: PAF3 | AI85: 4800
Y86: 4860 | Z86: 8.925 | AA86: -26.6 | AB86: 2.28 | AC86: 2.28 | AD86: 4860 | AE86: 81 | AF86: PAF3 | AI86: 4860
Y87: 4920 | Z87: 8.85 | AA87: -27.2 | AB87: 2.16 | AC87: 2.16 | AD87: 4920 | AE87: 82 | AF87: PAF3 | AI87: 4920
Y88: 4980 | Z88: 8.775 | AA88: -27.8 | AB88: 2.04 | AC88: 2.04 | AD88: 4980 | AE88: 83 | AF88: PAF3 | AI88: 4980
Y89: 5040 | Z89: 8.7 | AA89: -28.4 | AB89: 1.92 | AC89: 1.92 | AD89: 5040 | AE89: 84 | AF89: PAF3 | AI89: 5040
Y90: 5100 | Z90: 8.625 | AA90: -29 | AB90: 1.8 | AC90: 1.8 | AD90: 5100 | AE90: 85 | AF90: PAF3 | AI90: 5100
Y91: 5160 | Z91: 8.55 | AA91: -29.6 | AB91: 1.68 | AC91: 1.68 | AD91: 5160 | AE91: 86 | AF91: PAF3 | AI91: 5160
Y92: 5220 | Z92: 8.475 | AA92: -30.2 | AB92: 1.56 | AC92: 1.56 | AD92: 5220 | AE92: 87 | AF92: PAF3 | AI92: 5220
Y93: 5280 | Z93: 8.4 | AA93: -30.8 | AB93: 1.44 | AC93: 1.44 | AD93: 5280 | AE93: 88 | AF93: PAF3 | AI93: 5280
Y94: 5340 | Z94: 8.325 | AA94: -31.4 | AB94: 1.32 | AC94: 1.32 | AD94: 5340 | AE94: 89 | AF94: PAF3 | AI94: 5340
Y95: 5400 | Z95: 8.25 | AA95: -32 | AB95: 1.2 | AC95: 1.2 | AD95: 5400 | AE95: 90 | AF95: PAF3 | AI95: 5400
Y96: 5460 | Z96: 8.175 | AA96: -32.6 | AB96: 1.08 | AC96: 1.08 | AD96: 5460 | AE96: 91 | AF96: PAF3 | AI96: 5460
Y97: 5520 | Z97: 8.1 | AA97: -33.2 | AB97: 0.96 | AC97: 0.96 | AD97: 5520 | AE97: 92 | AF97: PAF3 | AI97: 5520
Y98: 5580 | Z98: 8.025 | AA98: -33.8 | AB98: 0.84 | AC98: 0.84 | AD98: 5580 | AE98: 93 | AF98: PAF3 | AI98: 5580
Y99: 5640 | Z99: 7.95 | AA99: -34.4 | AB99: 0.72 | AC99: 0.72 | AD99: 5640 | AE99: 94 | AF99: PAF3 | AI99: 5640
Y100: 5700 | Z100: 7.875 | AA100: -35 | AB100: 0.6 | AC100: 0.6 | AD100: 5700 | AE100: 95 | AF100: PAF3 | AI100: 5700
Y101: 5760 | Z101: 7.8 | AA101: -35.6 | AB101: 0.48 | AC101: 0.48 | AD101: 5760 | AE101: 96 | AF101: PAF3 | AI101: 5760
Y102: 5820 | Z102: 7.725 | AA102: -36.2 | AB102: 0.36 | AC102: 0.36 | AD102: 5820 | AE102: 97 | AF102: PAF3 | AI102: 5820
Y103: 5880 | Z103: 7.65 | AA103: -36.8 | AB103: 0.24 | AC103: 0.24 | AD103: 5880 | AE103: 98 | AF103: PAF3 | AI103: 5880
Y104: 5940 | Z104: 7.575 | AA104: -37.4 | AB104: 0.12 | AC104: 0.12 | AD104: 5940 | AE104: 99 | AF104: PAF3 | AI104: 5940
Y105: =F22 -> 6000 | Z105: 7.5 | AA105: -38 | AB105: 0 | AC105: 0 | AD105: 6000 | AE105: 100 | AF105: PAF3 | AI105: 6000

Sheet FunktionenunvollkommenerMark
B4: Aufgabe 1 | D4: Aufgabe 2 | F4: Aufgabe 3 | H4: Aufgabe 4 | J4: Aufgabe 5 | L4: Aufgabe 6 | N4: Aufgabe 7 | P4: Aufgabe 8
A5: K | B5: 4 | C5: 5100 | D5: 2 | E5: 2450 | F5: 14 | G5: 5000 | H5: 5 | I5: 450 | J5: 5 | K5: 450 | L5: 4 | M5: 2950 | N5: 6.8 | O5: 580 | P5: 9 | Q5: 3250
A6: PAF1 | B6: -0.00125 | C6: 15 | D6: -0.45 | E6: 92 | F6: -0.2 | G6: 100 | H6: -0.2 | I6: 200 | J6: -0.45 | K6: 1000 | L6: -0.355 | M6: 85 | N6: -1.15 | O6: 85 | P6: -0.1985 | Q6: 100
A7: PAF2 | B7: -0.01 | C7: 22 | D7: -0.85 | E7: 110.8 | F7: -0.5 | G7: 120 | H7: -0.5 | I7: 280 | J7: -0.85 | K7: 1200 | L7: -0.945 | M7: 120 | N7: -2.4 | O7: 105 | P7: -0.5015 | Q7: 120
A8: PAF3 | B8: -0.002 | C8: 12 | D8: -0.3 | E8: 60 | F8: -0.1 | G8: 60 | H8: -0.1 | I8: 100 | J8: -0.55 | K8: 900 | L8: -0.295 | M8: 65 | N8: -0.95 | O8: 65 | P8: -0.1055 | Q8: 60
B10: Aufgabe 9 | D10: Aufgabe 10 | F10: Aufgabe 10 | H10: Aufgabe 11 | J10: Aufgabe 12 | L10: Aufgabe 13 | N10: Aufgabe 14 | P10: Aufgabe 15
A11: K | B11: 5.8 | C11: 1900 | D11: 89 | E11: 29950 | F11: 12 | G11: 5100 | H11: 65 | I11: 650 | J11: 45 | K11: 4500 | L11: 477.5 | M11: 120000 | N11: 25 | O11: 15 | P11: 4 | Q11: 2500
A12: PAF1 | B12: -0.45 | C12: 92 | D12: -2.2 | E12: 920 | F12: -0.25 | G12: 150 | H12: -0.4 | I12: 115 | J12: -0.5 | K12: 210 | L12: -0.2 | M12: 1200 | N12: -2 | O12: 50 | P12: -0.002 | Q12: 16
A13: PAF2 | B13: -1.25 | C13: 125 | D13: -4.4 | E13: 1100 | F13: -0.5 | G13: 190 | H13: -1 | I13: 130 | J13: -0.75 | K13: 225 | L13: -0.85 | M13: 1400 | N13: -5 | O13: 80 | P13: -0.01 | Q13: 22
A14: PAF3 | B14: -0.3 | C14: 55 | D14: -3.1 | E14: 925 | F14: -0.25 | G14: 120 | H14: -0.4 | I14: 109 | J14: -0.3 | K14: 171 | L14: -0.55 | M14: 1000 | N14: -1 | O14: 30 | P14: -0.002 | Q14: 15
A17: K
A18: PAF1
A19: PAF2
A20: PAF3
A24: Hinweis: Sie können Funktionen markieren und kopieren und dann in die Felder E6 - F9 in der Tabelle "unvollkommener Markt" einfügen. Das Gewinnmaximum (Cournotscher Punkt) wird dann ermittelt.

Sheet Monopol
B2: Preisdifferenzierung im Monopol
N4: Erlöse in Abhängikeit von der Preisstruktur | R4: X | S4: PAF
B5: Funktionen | D5: bX2 | E5: cX | F5: d | G5: d/X | N5: pch-p2m-p3n | O5: p2h-pcm-p3n | P5: p3h-pcm-p2n | R5: 0 | S5: =$F$7+$E$7*R5 -> 6
B6: Gesamtkosten | C6: K= | E6: 1.5 | F6: 150 | N6: =(C26*G26)+((C24*G24)-(C24*G26))+((C25*G25)-(C25*G24)) -> 618.6549765 | O6: =(C24*G24)+((C26*G26)-(C26*G24))+((C25*G25)-(C25*G26)) -> 868.6972092 | P6: =(C25*G25)+((C26*G26)-(C26*G25))+((C24*G24)-(C24*G26)) -> 268.7394418 | R6: =R105/100 -> 6 | S6: =$F$7+$E$7*R6 -> 5.939988738
B7: Preis-Absatz-Funktion | C7: p= | E7: -0.01000187701 | F7: 6 | N7: pch-p3m-p2n | O7: p2h-p3m-pcn | P7: p3h-p2m-pcn | R7: =R6+$R$6 -> 12 | S7: =$F$7+$E$7*R7 -> 5.879977476
B8: variable Gesamtkosten | C8: Kv= | E8: =E6 -> 1.5 | N8: =(C26*G26)+((C25*G25)-(C25*G26))+((C24*G24)-(C24*G25)) -> 243.6549765 | O8: =(C24*G24)+((C25*G25)-(C25*G24))+((C26*G26)-(C26*G25)) -> 993.7394418 | P8: =(C25*G25)+((C24*G24)-(C24*G25))+((C26*G26)-(C26*G24)) -> 768.6972092 | R8: =R7+$R$6 -> 18 | S8: 5.819966214
B9: Stückkosten | C9: k= | F9: =E6 -> 1.5 | G9: =F6 -> 150 | R9: 24 | S9: 5.759954952
B10: variable Stückkosten | C10: kv= | F10: =E6 -> 1.5 | H10: Hinweise: Die Kostenfunktion wird in die Zellen E6 - F6 | N10: Kosten in Abhängigkeit von der Preisstruktur | R10: 30 | S10: 5.69994369
B11: Grenzkosten | C11: K'= | F11: =E6 -> 1.5 | H11: eingetragen. (E6: mengenabhängiger Teil, | N11: pch-p2m-p3n | O11: p2h-pcm-p3n | P11: p3h-pcm-p2n | R11: 36 | S11: 5.639932428
B12: fixe Gesamtkosten | C12: Kf= | F12: =F6 -> 150 | H12: variable Stückkosten; F6: konstanter Teil, fixe Kosten) | N12: =F6+(E6*G25) -> 450 | O12: =F6+(E6*G25) -> 450 | P12: =F6+(E6*G24) -> 300 | R12: 42 | S12: 5.579921166
B13: fixe Stückkosten | C13: kf= | G13: =F6 -> 150 | H13: Die Preis-Absatz-Funktion wird in die Zellen | N13: pch-p3m-p2n | O13: p2h-p3m-pcn | P13: p3h-p2m-pcn | R13: 48 | S13: 5.519909904
B14: Erlös | C14: E= | D14: =E7 -> -0.01000187701 | E14: =F7 -> 6 | H14: E7 - F7 eingetragen. (mengenabhängiger Teil in Spalte E, | N14: =F6+(E6*G24) -> 300 | O14: =F6+(E6*G26) -> 487.5 | P14: =F6+(E6*G26) -> 487.5 | R14: 54 | S14: 5.459898642
B15: Grenzerlös | C15: E'= | E15: =D14*2 -> -0.02000375402 | F15: =E14 -> 6 | H15: konstanter Teil in Spalte F) | R15: 60 | S15: 5.39988738
B16: Sättigungsmenge | C16: xmax= | F16: =ROUND(F7/E7*-1,0) -> 600 | H16: Gewinnänderungen aufgrund der Preisdifferenzierung | N16: Gewinn in Abhängigkeit von der Preisstruktur | R16: 66 | S16: 5.339876117
H17: werden in Zelle G30 angezeigt. | N17: pch-p2m-p3n | O17: p2h-pcm-p3n | P17: p3h-pcm-p2n | R17: 72 | S17: 5.279864855
C18: Gewinnmaximum (Cournotscher Punkt) | H18: Musterfunktionen können von der Seite "Funktionen" | N18: =N6-N12 -> 168.6549765 | O18: =O6-O12 -> 418.6972092 | P18: =P6-P12 -> -31.26055817 | R18: 78 | S18: 5.219853593
H19: kopiert und in die Zellen E6 - F7 eingefügt werden. | N19: pch-p3m-p2n | O19: p2h-p3m-pcn | P19: p3h-p2m-pcn | R19: 84 | S19: 5.159842331
C20: XGmax | D20: PGmax | E20: Gmax | F20: E | G20: K | N20: =N8-N14 -> -56.34502351 | O20: =O8-O14 -> 506.2394418 | P20: =P8-P14 -> 281.1972092 | R20: 90 | S20: 5.099831069
C21: =ROUND((F15-F11)/(E15*-1),0) -> 225 | D21: =F7+(E7*C21) -> 3.749577673 | E21: =F21-G21 -> 356.1549765 | F21: =(D14*C21*C21)+(E14*C21) -> 843.6549765 | G21: =(E6*C21)+F6 -> 487.5 | R21: 96 | S21: 5.039819807
R22: 102 | S22: 4.979808545
B23: Preisdifferenzierung | E23: Preisstruktur | G23: Menge | R23: 108 | S23: 4.919797283
B24: p2 | C24: 5 | D24: =IF(OR(C24>F7,G24<0),"nicht definiert","definiert") -> definiert | E24: =IF(AND(C24>C26,C24>C25),"Hochpreis",IF(AND(C24<C26,C24<C25),"Niedrigpreis","Mittelpreis")) -> Hochpreis | F24: =IF(E24="Hochpreis",1,IF(E24="Mittelpreis",2,3)) -> 1 | G24: =ROUND((C24-F7)/(E7),0) -> 100 | R24: 114 | S24: 4.859786021
B25: p3 | C25: 4 | D25: =IF(OR(C25>F7,G25<0),"nicht definiert","definiert") -> definiert | E25: =IF(AND(C25>C26,C25>C24),"Hochpreis",IF(AND(C25<C26,C25<C24),"Niedrigpreis","Mittelpreis")) -> Mittelpreis | F25: =IF(E25="Hochpreis",1,IF(E25="Mittelpreis",2,3)) -> 2 | G25: =ROUND((C25-F7)/E7,0) -> 200 | R25: 120 | S25: 4.799774759
B26: pc | C26: =D21 -> 3.749577673 | D26: definiert | E26: =IF(AND(C26>C24,C26>C25),"Hochpreis",IF(AND(C26<C24,C26<C25),"Niedrigpreis","Mittelpreis")) -> Niedrigpreis | F26: =IF(E26="Hochpreis",1,IF(E26="Mittelpreis",2,3)) -> 3 | G26: =C21 -> 225 | R26: 126 | S26: 4.739763497
R27: 132 | S27: 4.679752235
B28: Umsatz | C28: =IF(AND(F26=1,F24=2),N6,IF(AND(F26=1,F25=2),N8,IF(AND(F24=1,F26=2),O6,IF(AND(F24=1,F25=2),O8,IF(AND(F25=1,F26=2),P6,P8))))) -> 993.7394418 | D28: Gewinn mit Preisdifferenzierung | G28: =C30 -> 506.2394418 | R28: 138 | S28: 4.619740973
B29: Kosten | C29: =IF(AND(F26=1,F24=2),N12,IF(AND(F26=1,F25=2),N14,IF(AND(F24=1,F26=2),O12,IF(AND(F24=1,F25=2),O14,IF(AND(F25=1,F26=2),P12,P14))))) -> 487.5 | D29: Gewinn ohne Preisdifferenzierung | G29: =E21 -> 356.1549765 | R29: 144 | S29: 4.559729711
B30: Gewinn | C30: =C28-C29 -> 506.2394418 | D30: Differenz | G30: =G28-G29 -> 150.0844653 | R30: 150 | S30: 4.499718449
R31: 156 | S31: 4.439707187
R32: 162 | S32: 4.379695925
R33: 168 | S33: 4.319684663
M34: Matrix der Preis-Mengen-Kombinationen (Datenreihen für das Punktdiagramm) | R34: 174 | S34: 4.259673401
R35: 180 | S35: 4.199662139
M36: Cournotscher Punkt | R36: 186 | S36: 4.139650877
M37: =C21 -> 225 | N37: 0 | O37: 0 | P37: =D21 -> 3.749577673 | R37: 192 | S37: 4.079639615
M38: =C21 -> 225 | N38: =D21 -> 3.749577673 | O38: =C21 -> 225 | P38: =D21 -> 3.749577673 | R38: 198 | S38: 4.019628352
M39: Preis 2, Menge 2 | R39: 204 | S39: 3.95961709
M40: =G24 -> 100 | N40: 0 | O40: 0 | P40: =C24 -> 5 | R40: 210 | S40: 3.899605828
M41: =G24 -> 100 | N41: =C24 -> 5 | O41: =G24 -> 100 | P41: =C24 -> 5 | R41: 216 | S41: 3.839594566
M42: Preis 3, Menge 3 | R42: 222 | S42: 3.779583304
M43: =G25 -> 200 | N43: 0 | O43: 0 | P43: =C25 -> 4 | R43: 228 | S43: 3.719572042
M44: =G25 -> 200 | N44: =C25 -> 4 | O44: =G25 -> 200 | P44: =C25 -> 4 | R44: 234 | S44: 3.65956078
R45: 240 | S45: 3.599549518
N46: Matrix der Preis-Absatz-Funktion (Datenreihen für dasPunktdiagramm) | R46: 246 | S46: 3.539538256
R47: 252 | S47: 3.479526994
R48: 258 | S48: 3.419515732
N49: 0 | O49: =F7 -> 6 | R49: 264 | S49: 3.35950447
N50: =F16 -> 600 | O50: 0 | R50: 270 | S50: 3.299493208
R51: 276 | S51: 3.239481946
R52: 282 | S52: 3.179470684
R53: 288 | S53: 3.119459422
R54: 294 | S54: 3.05944816
R55: 300 | S55: 2.999436898
R56: 306 | S56: 2.939425636
R57: 312 | S57: 2.879414374
R58: 318 | S58: 2.819403112
R59: 324 | S59: 2.75939185
B60: Berechnungen: Spalte N - S; Schriftfarbe: weiß | R60: 330 | S60: 2.699380587
R61: 336 | S61: 2.639369325
R62: 342 | S62: 2.579358063
R63: 348 | S63: 2.519346801
R64: 354 | S64: 2.459335539
R65: 360 | S65: 2.399324277
R66: 366 | S66: 2.339313015
R67: 372 | S67: 2.279301753
R68: 378 | S68: 2.219290491
R69: 384 | S69: 2.159279229
R70: 390 | S70: 2.099267967
R71: 396 | S71: =$F$7+$E$7*R71 -> 2.039256705
R72: =R71+$R$6 -> 402 | S72: 1.979245443
R73: 408 | S73: 1.919234181
R74: 414 | S74: 1.859222919
R75: 420 | S75: 1.799211657
R76: 426 | S76: 1.739200395
R77: 432 | S77: 1.679189133
R78: 438 | S78: 1.619177871
R79: 444 | S79: 1.559166609
R80: 450 | S80: 1.499155347
R81: 456 | S81: 1.439144085
R82: 462 | S82: 1.379132822
R83: 468 | S83: 1.31912156
R84: 474 | S84: 1.259110298
R85: 480 | S85: 1.199099036
R86: 486 | S86: 1.139087774
R87: 492 | S87: 1.079076512
R88: 498 | S88: 1.01906525
R89: 504 | S89: 0.9590539882
R90: 510 | S90: 0.8990427261
R91: 516 | S91: 0.8390314641
R92: 522 | S92: 0.779020202
R93: 528 | S93: 0.71900894
R94: 534 | S94: 0.658997678
R95: 540 | S95: 0.5989864159
R96: 546 | S96: 0.5389751539
R97: 552 | S97: 0.4789638918
R98: 558 | S98: 0.4189526298
R99: 564 | S99: 0.3589413677
R100: 570 | S100: 0.2989301057
R101: 576 | S101: 0.2389188436
R102: 582 | S102: 0.1789075816
R103: 588 | S103: 0.1188963195
R104: 594 | S104: 0.0588850575
R105: =F16 -> 600 | S105: -0.001126204547

Sheet FunktionenMonopol
B4: Aufgabe 1 | D4: Aufgabe 2 | F4: Aufgabe 3 | H4: Aufgabe 4 | J4: Aufgabe 5 | L4: Aufgabe 6 | N4: Aufgabe 7 | P4: Aufgabe 8 | R4: 1/25 | S4: 0.04 | T4: 25
A5: K | B5: 300 | C5: 10000 | D5: 4 | E5: 5100 | F5: 4 | G5: 5100 | H5: 4 | I5: 5100 | J5: 2 | K5: 2450 | L5: 14 | M5: 5000 | N5: 14 | O5: 5000 | P5: 4 | Q5: 2950 | R5: 1/75 | S5: 0.01333333333 | T5: 75
A6: PAF | B6: -15 | C6: 1200 | D6: -0.00125 | E6: 15 | F6: -0.01 | G6: 22 | H6: -0.002 | I6: 12 | J6: -0.45 | K6: 92 | L6: -0.2 | M6: 100 | N6: -0.5 | O6: 120 | P6: -0.355 | Q6: 85 | R6: 1/125 | S6: 0.008 | T6: 125
R7: 1/40 | S7: 0.025 | T7: 40
B8: Aufgabe 9 | D8: Aufgabe 10 | F8: Aufgabe 11 | H8: Aufgabe 12 | J8: Aufgabe 13 | L8: Aufgabe 14 | N8: Aufgabe 15 | P8: Aufgabe 16 | R8: 1/60 | S8: 0.01666666667 | T8: 60
A9: K | B9: 6.8 | C9: 580 | D9: 9 | E9: 3250 | F9: 9 | G9: 3250 | H9: 9 | I9: 3250 | J9: 5.8 | K9: 1900 | L9: 5.8 | M9: 1900 | N9: 5.8 | O9: 1900 | P9: 89 | Q9: 29950 | R9: 1/80 | S9: 0.0125 | T9: 80
A10: PAF | B10: -1.15 | C10: 85 | D10: -0.1985 | E10: 100 | F10: -0.5015 | G10: 120 | H10: -0.1055 | I10: 60 | J10: -0.45 | K10: 92 | L10: -1.25 | M10: 125 | N10: -0.3 | O10: 55 | P10: -2.2 | Q10: 920 | R10: 1/90 | S10: 0.01111111111 | T10: 90
R11: 1/20 | S11: 0.05 | T11: 20
B12: Aufgabe 17 | D12: Aufgabe 18 | F12: Aufgabe 19 | H12: Aufgabe 20 | J12: Aufgabe 21 | L12: Aufgabe 22 | N12: Aufgabe 23 | P12: Aufgabe 24 | R12: 1/30 | S12: 0.03333333333 | T12: 30
A13: K | B13: 89 | C13: 29950 | D13: 89 | E13: 29950 | F13: 12 | G13: 5100 | H13: 12 | I13: 5100 | J13: 12 | K13: 5100 | L13: 40 | M13: 2950 | N13: 40 | O13: 75500 | P13: 20 | Q13: 20000 | R13: 1/300 | S13: 0.003333333333 | T13: 300
A14: PAF | B14: -4.4 | C14: 1100 | D14: -3.1 | E14: 925 | F14: -0.25 | G14: 150 | H14: -0.5 | I14: 190 | J14: -0.25 | K14: 120 | L14: -0.125 | M14: 92 | N14: -0.125 | O14: 300 | P14: -0.00333 | Q14: 40 | R14: 1/125 | S14: 0.004444444444 | T14: 225
R15: 1/45 | S15: 0.02222222222 | T15: 45
B16: Aufgabe 17 | D16: Aufgabe 18 | F16: Aufgabe 19 | H16: Aufgabe 20 | J16: Aufgabe 21 | L16: Aufgabe 22 | N16: Aufgabe 23 | P16: Aufgabe 24 | R16: 1/150 | S16: 0.006666666667 | T16: 150
A17: K | B17: 89 | C17: 29950 | D17: 89 | E17: 29950 | F17: 12 | G17: 5100 | H17: 12 | I17: 5100 | J17: 12 | K17: 5100 | L17: 40 | M17: 2950 | N17: 40 | O17: 75500 | R17: 1/250 | S17: 0.004 | T17: 250
A18: PAF | B18: -4.4 | C18: 1100 | D18: -3.1 | E18: 925 | F18: -0.25 | G18: 150 | H18: -0.5 | I18: 190 | J18: -0.25 | K18: 120 | L18: -0.125 | M18: 92 | N18: -0.125 | O18: 300 | R18: 1/15 | S18: 0.06666666667 | T18: 15
R19: 1/8 | S19: 0.125 | T19: 8
B20: Aufgabe 25 | D20: Aufgabe 26 | F20: Aufgabe 27 | H20: Aufgabe 28 | J20: Aufgabe 29 | L20: Aufgabe 30 | N20: Aufgabe 31 | P20: Aufgabe 32 | R20: 1/16 | S20: 0.0625 | T20: 16
A21: K | B21: 400 | C21: 29950 | D21: 1.5 | E21: 150 | R21: 1/32 | S21: 0.03125 | T21: 32
A22: PAF | B22: -4.4 | C22: 1100 | D22: -0.01000187701 | E22: 6 | R22: 1/64 | S22: 0.015625 | T22: 64
R23: 1/500 | S23: 0.002 | T23: 500
A25: Hinweis: Sie können Funktionen markieren und kopieren und dann in die Felder E6 - F7 in der Tabelle "Monopol" einfügen. Das Gewinnmaximum (Cournotscher Punkt) wird dann ermittelt.
